Workbook

Sheet Magacin
A1: ARTIKLI
A2: ŠIFRA | B2: NAZIV ARTIKLA | C2: J.M. | D2: KOLIČINA | E2: VP CIJENA sa pdv | F2: nabavna cijena | G2: vp cijena | H2: mp cijena | J2: Izdato
A3: 11 | B3: Artikal 1 - 25kg | C3: kg | D3: 150 | E3: 0.486 | F3: 0.486 | G3: 0.91 | H3: 1.4 | J3: =D3-Fakture!E18 -> 100
A4: 22 | B4: Artikal 2 - 15kg | C4: kg | D4: 250 | E4: 0.399 | F4: 0.399 | G4: 0.928 | H4: 1.2 | J4: =D4-Fakture!E19 -> 150
A5: 33 | B5: Artikal 3 - 15kg | C5: kg | D5: 150 | E5: 1.119 | F5: 1.119 | G5: 2.142 | H5: 2.8 | J5: =D5-Fakture!E23 -> 150
A6: 44 | B6: Artikal 4 - 12kg | C6: kg | D6: 10 | E6: 1.111 | F6: 1.111 | G6: 2.07 | H6: 2.6 | J6: =D6-Fakture!E24 -> 10

Sheet Firme
A1: KUPCI
A2: ŠIFRA | B2: NAZIV | C2: ADRESA | D2: PIB | E2: PDV
A3: 1 | B3: Firma 1 | C3: Adresa 1 | D3: 11 | E3: 111
A4: 2 | B4: Firma 2 | C4: Adresa 2 | D4: 22 | E4: 222
A5: 3 | B5: Firma 3 | C5: Adresa 3 | D5: 33 | E5: 333
A6: 4 | B6: Firma 4 | C6: Adresa 4 | D6: 44 | E6: 444
A7: 5 | B7: Firma 5 | C7: Adresa 5 | D7: 55 | E7: 555
A8: 6 | B8: Firma 6 | C8: Adresa 6 | D8: 66 | E8: 666
A9: 7 | B9: Firma 7 | C9: Adresa 7 | D9: 77 | E9: 777
A10: 8 | B10: Firma 8 | C10: Adresa 8 | D10: 88 | E10: 888
A11: 9 | B11: Firma 9 | C11: Adresa 9 | D11: 99 | E11: 999
A12: 10 | B12: Firma 10 | C12: Adresa 10 | D12: 110 | E12: 1110
A13: 11 | B13: Firma 11 | C13: Adresa 11 | D13: 121 | E13: 1221
A14: 12 | B14: Firma 12 | C14: Adresa 12 | D14: 132 | E14: 1332
A15: 13 | B15: Firma 13 | C15: Adresa 13 | D15: 143 | E15: 1443

Sheet Fakture
B9: RAČUN BR. | I9: KUPAC (ID): | J9: 8
I10: Naziv kupca: | J10: =IF(J9="","",VLOOKUP(J9,Firme!A3:E50000,2,FALSE)) -> Firma 8
B11: Datum: | I11: Adresa: | J11: =IF(J9="","",VLOOKUP(J9,Firme!A3:E50000,3,FALSE)) -> Adresa 8
I12: PIB | J12: =IF(J9="","",VLOOKUP(J9,Firme!A3:E50000,4,FALSE)) -> 88
I13: PDV: | J13: =IF(J9="","",VLOOKUP(J9,Firme!A3:E50000,5,FALSE)) -> 888
A17: R.br | B17: Šifra | C17: Naziv artikla | D17: J.M | E17: Kol | F17: Cijena bez PDV | G17: Vrijednost bez PDV | H17: Rabat % | I17: Iznos rabata | J17: Vrijednost bez PDV-a sa rabatom | K17: PDV% | L17: Cijena sa PDV | M17: Vrijednost
A18: 1 | B18: 11 | C18: =IF(B18="","",VLOOKUP(B18,Magacin!$A$3:$E$48683,2,FALSE)) -> Artikal 1 - 25kg | D18: =IF(C18="","",VLOOKUP(C18,Magacin!$B$3:$H$48683,2,FALSE)) -> kg | E18: 50 | F18: =IF(C18="","",VLOOKUP(C18,Magacin!$B$3:$H$48683,4,FALSE))-21% -> 0.276 | G18: =IF(B18<>"",E18*F18,"") -> 13.8 | H18: 0 | I18: =IF(B18<>"",G18*H18,"") -> 0 | J18: =IF(B18<>"",G18-I18,"") -> 13.8 | K18: =IF(B18<>"",21%,"") -> 0.21 | L18: =IF(B18="","",VLOOKUP(B18,Magacin!$A$3:$E$48683,5,FALSE)) -> 0.486 | M18: =IF(B18<>"",L18*E18,"") -> 24.3
A19: =IF(B19="","",A18+1) -> 2 | B19: 33 | C19: =IF(B19="","",VLOOKUP(B19,Magacin!$A$3:$E$48683,2,FALSE)) -> Artikal 3 - 15kg | D19: =IF(C19="","",VLOOKUP(C19,Magacin!$B$3:$H$48683,2,FALSE)) -> kg | E19: 100 | F19: =IF(C19="","",VLOOKUP(C19,Magacin!$B$3:$H$48683,4,FALSE))-21% -> 0.909 | G19: 90.9 | H19: 0 | I19: =IF(B19<>"",G19*H19,"") -> 0 | J19: =IF(B19<>"",G19-I19,"") -> 90.9 | K19: 0.21 | L19: =IF(B19="","",VLOOKUP(B19,Magacin!$A$3:$E$48683,5,FALSE)) -> 1.119 | M19: =IF(B19<>"",L19*E19,"") -> 111.9
A20: =IF(B20="","",A16+1) ->  | C20: =IF(B20="","",VLOOKUP(B20,Magacin!$A$3:$E$48683,2,FALSE)) ->  | D20: =IF(C20="","",VLOOKUP(C20,Magacin!$B$3:$H$48683,2,FALSE)) ->  | F20: =IF(B20<>"",VLOOKUP(C20,Magacin!$B$3:$H$48683,4,FALSE)*(1-0.21),"") ->  | H20: 0 | I20: =IF(B20<>"",G20*H20,"") ->  | J20: =IF(B20<>"",G20-I20,"") ->  | L20: =IF(B20="","",VLOOKUP(B20,Magacin!$A$3:$E$48683,5,FALSE)) ->  | M20: =IF(B20<>"",L20*E20,"") -> 
C21: =IF(B21="","",VLOOKUP(B21,Magacin!$A$3:$E$48683,2,FALSE)) ->  | D21: =IF(C21="","",VLOOKUP(C21,Magacin!$B$3:$H$48683,2,FALSE)) ->  | F21: =IF(B21<>"",VLOOKUP(C21,Magacin!$B$3:$H$48683,4,FALSE)*(1-0.21),"") ->  | H21: 0 | L21: =IF(B21="","",VLOOKUP(B21,Magacin!$A$3:$E$48683,5,FALSE)) -> 
C22: =IF(B22="","",VLOOKUP(B22,Magacin!$A$3:$E$48683,2,FALSE)) ->  | D22: =IF(C22="","",VLOOKUP(C22,Magacin!$B$3:$H$48683,2,FALSE)) ->  | F22: =IF(B22<>"",VLOOKUP(C22,Magacin!$B$3:$H$48683,4,FALSE)*(1-0.21),"") ->  | H22: 0 | L22: =IF(B22="","",VLOOKUP(B22,Magacin!$A$3:$E$48683,5,FALSE)) -> 
A23: =IF(B23="","",A19+1) ->  | C23: =IF(B23="","",VLOOKUP(B23,Magacin!$A$3:$E$48683,2,FALSE)) ->  | D23: =IF(C23="","",VLOOKUP(C23,Magacin!$B$3:$H$48683,2,FALSE)) ->  | F23: =IF(B23<>"",VLOOKUP(C23,Magacin!$B$3:$H$48683,4,FALSE)*(1-0.21),"") ->  | G23: =IF(B23<>"",E23*F23,"") ->  | H23: 0 | I23: =IF(B23<>"",G23*H23,"") ->  | J23: =IF(B23<>"",G23-I23,"") ->  | K23: =IF(B23<>"",21%,"") ->  | L23: =IF(B23="","",VLOOKUP(B23,Magacin!$A$3:$E$48683,5,FALSE)) ->  | M23: =IF(B23<>"",L23*E23,"") -> 
A24: =IF(B24="","",A23+1) ->  | C24: =IF(B24="","",VLOOKUP(B24,Magacin!$A$3:$E$48683,2,FALSE)) ->  | D24: =IF(C24="","",VLOOKUP(C24,Magacin!$B$3:$H$48683,2,FALSE)) ->  | F24: =IF(B24<>"",VLOOKUP(C24,Magacin!$B$3:$H$48683,4,FALSE)*(1-0.21),"") ->  | H24: 0 | I24: =IF(B24<>"",G24*H24,"") ->  | J24: =IF(B24<>"",G24-I24,"") ->  | L24: =IF(B24="","",VLOOKUP(B24,Magacin!$A$3:$E$48683,5,FALSE)) -> 
C25: =IF(B25="","",VLOOKUP(B25,Magacin!A7:E3726,2,FALSE)) ->  | D25: =IF(C25="","",VLOOKUP(C25,Magacin!B7:H3727,2,FALSE)) ->  | F25: =IF(E25="","",VLOOKUP(E25,Magacin!D7:H3727,2,FALSE)) ->  | L25: UKUPNO: | M25: =SUM(M18:M24) -> 136.2
C26: =IF(B26="","",VLOOKUP(B26,Magacin!A7:E3727,2,FALSE)) ->  | D26: =IF(C26="","",VLOOKUP(C26,Magacin!B7:H3728,2,FALSE)) ->  | F26: =IF(E26="","",VLOOKUP(E26,Magacin!D7:H3728,2,FALSE)) -> 
C27: =IF(B27="","",VLOOKUP(B27,Magacin!A7:E3728,2,FALSE)) ->  | D27: =IF(C27="","",VLOOKUP(C27,Magacin!B7:H3729,2,FALSE)) ->  | F27: =IF(E27="","",VLOOKUP(E27,Magacin!D7:H3729,2,FALSE)) -> 
C28: =IF(B28="","",VLOOKUP(B28,Magacin!A7:E3729,2,FALSE)) ->  | D28: =IF(C28="","",VLOOKUP(C28,Magacin!B7:H3730,2,FALSE)) ->  | F28: =IF(E28="","",VLOOKUP(E28,Magacin!D7:H3730,2,FALSE)) -> 
C29: =IF(B29="","",VLOOKUP(B29,Magacin!A7:E3730,2,FALSE)) ->  | D29: =IF(C29="","",VLOOKUP(C29,Magacin!B7:H3731,2,FALSE)) ->  | F29: =IF(E29="","",VLOOKUP(E29,Magacin!D7:H3731,2,FALSE)) -> 
C30: =IF(B30="","",VLOOKUP(B30,Magacin!A7:E3731,2,FALSE)) ->  | D30: =IF(C30="","",VLOOKUP(C30,Magacin!B7:H3732,2,FALSE)) ->  | F30: =IF(E30="","",VLOOKUP(E30,Magacin!D7:H3732,2,FALSE)) -> 
C31: =IF(B31="","",VLOOKUP(B31,Magacin!A7:E3732,2,FALSE)) ->  | D31: =IF(C31="","",VLOOKUP(C31,Magacin!B7:H3733,2,FALSE)) ->  | F31: =IF(E31="","",VLOOKUP(E31,Magacin!D7:H3733,2,FALSE)) -> 
C32: =IF(B32="","",VLOOKUP(B32,Magacin!A7:E3733,2,FALSE)) ->  | D32: =IF(C32="","",VLOOKUP(C32,Magacin!B7:H3734,2,FALSE)) ->  | F32: =IF(E32="","",VLOOKUP(E32,Magacin!D7:H3734,2,FALSE)) -> 
C33: =IF(B33="","",VLOOKUP(B33,Magacin!A7:E3734,2,FALSE)) ->  | D33: =IF(C33="","",VLOOKUP(C33,Magacin!B7:H3735,2,FALSE)) ->  | F33: =IF(E33="","",VLOOKUP(E33,Magacin!D7:H3735,2,FALSE)) -> 
C34: =IF(B34="","",VLOOKUP(B34,Magacin!A7:E3735,2,FALSE)) ->  | D34: =IF(C34="","",VLOOKUP(C34,Magacin!B7:H3736,2,FALSE)) ->  | F34: =IF(E34="","",VLOOKUP(E34,Magacin!D7:H3736,2,FALSE)) -> 
C35: =IF(B35="","",VLOOKUP(B35,Magacin!A7:E3736,2,FALSE)) ->  | D35: =IF(C35="","",VLOOKUP(C35,Magacin!B7:H3737,2,FALSE)) ->  | F35: =IF(E35="","",VLOOKUP(E35,Magacin!D7:H3737,2,FALSE)) -> 
C36: =IF(B36="","",VLOOKUP(B36,Magacin!A7:E3737,2,FALSE)) ->  | D36: =IF(C36="","",VLOOKUP(C36,Magacin!B7:H3738,2,FALSE)) ->  | F36: =IF(E36="","",VLOOKUP(E36,Magacin!D7:H3738,2,FALSE)) -> 
C37: =IF(B37="","",VLOOKUP(B37,Magacin!A7:E3738,2,FALSE)) ->  | D37: =IF(C37="","",VLOOKUP(C37,Magacin!B7:H3739,2,FALSE)) ->  | F37: =IF(E37="","",VLOOKUP(E37,Magacin!D7:H3739,2,FALSE)) -> 
C38: =IF(B38="","",VLOOKUP(B38,Magacin!A7:E3739,2,FALSE)) ->  | D38: =IF(C38="","",VLOOKUP(C38,Magacin!B7:H3740,2,FALSE)) ->  | F38: =IF(E38="","",VLOOKUP(E38,Magacin!D7:H3740,2,FALSE)) -> 
C39: =IF(B39="","",VLOOKUP(B39,Magacin!A7:E3740,2,FALSE)) ->  | D39: =IF(C39="","",VLOOKUP(C39,Magacin!B7:H3741,2,FALSE)) ->  | F39: =IF(E39="","",VLOOKUP(E39,Magacin!D7:H3741,2,FALSE)) -> 
C40: =IF(B40="","",VLOOKUP(B40,Magacin!A7:E3792,2,FALSE)) -> 
C41: =IF(B41="","",VLOOKUP(B41,Magacin!A7:E3793,2,FALSE)) -> 
C42: =IF(B42="","",VLOOKUP(B42,Magacin!A7:E3794,2,FALSE)) -> 
C43: =IF(B43="","",VLOOKUP(B43,Magacin!A7:E3795,2,FALSE)) -> 
C44: =IF(B44="","",VLOOKUP(B44,Magacin!A7:E3796,2,FALSE)) -> 
C45: =IF(B45="","",VLOOKUP(B45,Magacin!A7:E3797,2,FALSE)) -> 
C46: =IF(B46="","",VLOOKUP(B46,Magacin!A7:E3798,2,FALSE)) -> 
C47: =IF(B47="","",VLOOKUP(B47,Magacin!A7:E3799,2,FALSE)) -> 
C48: =IF(B48="","",VLOOKUP(B48,Magacin!A7:E3800,2,FALSE)) -> 
C49: =IF(B49="","",VLOOKUP(B49,Magacin!A7:E3801,2,FALSE)) -> 
C50: =IF(B50="","",VLOOKUP(B50,Magacin!A7:E3802,2,FALSE)) -> 
C51: =IF(B51="","",VLOOKUP(B51,Magacin!A7:E3803,2,FALSE)) -> 
C52: =IF(B52="","",VLOOKUP(B52,Magacin!A7:E3804,2,FALSE)) -> 
C53: =IF(B53="","",VLOOKUP(B53,Magacin!A7:E3805,2,FALSE)) -> 
C54: =IF(B54="","",VLOOKUP(B54,Magacin!A7:E3806,2,FALSE)) -> 
C55: =IF(B55="","",VLOOKUP(B55,Magacin!A7:E3807,2,FALSE)) -> 
C56: =IF(B56="","",VLOOKUP(B56,Magacin!A7:E3808,2,FALSE)) -> 
C57: =IF(B57="","",VLOOKUP(B57,Magacin!A7:E3809,2,FALSE)) -> 
C58: =IF(B58="","",VLOOKUP(B58,Magacin!A7:E3810,2,FALSE)) -> 
C59: =IF(B59="","",VLOOKUP(B59,Magacin!A7:E3811,2,FALSE)) -> 
C60: =IF(B60="","",VLOOKUP(B60,Magacin!A7:E3812,2,FALSE)) -> 
C61: =IF(B61="","",VLOOKUP(B61,Magacin!A7:E3813,2,FALSE)) -> 
C62: =IF(B62="","",VLOOKUP(B62,Magacin!A7:E3814,2,FALSE)) -> 
C63: =IF(B63="","",VLOOKUP(B63,Magacin!A7:E3815,2,FALSE)) -> 
C64: =IF(B64="","",VLOOKUP(B64,Magacin!A7:E3816,2,FALSE)) -> 
C65: =IF(B65="","",VLOOKUP(B65,Magacin!A7:E3817,2,FALSE)) -> 
C66: =IF(B66="","",VLOOKUP(B66,Magacin!A7:E3818,2,FALSE)) -> 
C67: =IF(B67="","",VLOOKUP(B67,Magacin!A7:E3819,2,FALSE)) -> 
C68: =IF(B68="","",VLOOKUP(B68,Magacin!A7:E3820,2,FALSE)) -> 
C69: =IF(B69="","",VLOOKUP(B69,Magacin!A7:E3821,2,FALSE)) -> 
C70: =IF(B70="","",VLOOKUP(B70,Magacin!A7:E3822,2,FALSE)) -> 
C71: =IF(B71="","",VLOOKUP(B71,Magacin!A7:E3823,2,FALSE)) -> 
C72: =IF(B72="","",VLOOKUP(B72,Magacin!A7:E3824,2,FALSE)) -> 
C73: =IF(B73="","",VLOOKUP(B73,Magacin!A7:E3825,2,FALSE)) -> 
C74: =IF(B74="","",VLOOKUP(B74,Magacin!A7:E3826,2,FALSE)) -> 
C75: =IF(B75="","",VLOOKUP(B75,Magacin!A7:E3827,2,FALSE)) -> 
C76: =IF(B76="","",VLOOKUP(B76,Magacin!A7:E3828,2,FALSE)) -> 
C77: =IF(B77="","",VLOOKUP(B77,Magacin!A7:E3829,2,FALSE)) -> 
C78: =IF(B78="","",VLOOKUP(B78,Magacin!A7:E3830,2,FALSE)) -> 
C79: =IF(B79="","",VLOOKUP(B79,Magacin!A7:E3831,2,FALSE)) -> 
C80: =IF(B80="","",VLOOKUP(B80,Magacin!A7:E3832,2,FALSE)) -> 
C81: =IF(B81="","",VLOOKUP(B81,Magacin!A7:E3833,2,FALSE)) -> 
C82: =IF(B82="","",VLOOKUP(B82,Magacin!A7:E3834,2,FALSE)) -> 
C83: =IF(B83="","",VLOOKUP(B83,Magacin!A7:E3835,2,FALSE)) -> 
C84: =IF(B84="","",VLOOKUP(B84,Magacin!A7:E3836,2,FALSE)) -> 
C85: =IF(B85="","",VLOOKUP(B85,Magacin!A7:E3837,2,FALSE)) -> 
C86: =IF(B86="","",VLOOKUP(B86,Magacin!A7:E3838,2,FALSE)) -> 
C87: =IF(B87="","",VLOOKUP(B87,Magacin!A7:E3839,2,FALSE)) -> 
C88: =IF(B88="","",VLOOKUP(B88,Magacin!A7:E3840,2,FALSE)) -> 
C89: =IF(B89="","",VLOOKUP(B89,Magacin!A7:E3841,2,FALSE)) -> 
C90: =IF(B90="","",VLOOKUP(B90,Magacin!A7:E3842,2,FALSE)) -> 
C91: =IF(B91="","",VLOOKUP(B91,Magacin!A7:E3843,2,FALSE)) -> 
C92: =IF(B92="","",VLOOKUP(B92,Magacin!A7:E3844,2,FALSE)) -> 
C93: =IF(B93="","",VLOOKUP(B93,Magacin!A7:E3845,2,FALSE)) -> 
C94: =IF(B94="","",VLOOKUP(B94,Magacin!A7:E3846,2,FALSE)) -> 
C95: =IF(B95="","",VLOOKUP(B95,Magacin!A7:E3847,2,FALSE)) -> 
C96: =IF(B96="","",VLOOKUP(B96,Magacin!A7:E3848,2,FALSE)) -> 
C97: =IF(B97="","",VLOOKUP(B97,Magacin!A7:E3849,2,FALSE)) -> 
C98: =IF(B98="","",VLOOKUP(B98,Magacin!A7:E3850,2,FALSE)) -> 
C99: =IF(B99="","",VLOOKUP(B99,Magacin!A7:E3851,2,FALSE)) -> 
C100: =IF(B100="","",VLOOKUP(B100,Magacin!A7:E3852,2,FALSE)) -> 
C101: =IF(B101="","",VLOOKUP(B101,Magacin!A7:E3853,2,FALSE)) -> 
C102: =IF(B102="","",VLOOKUP(B102,Magacin!A7:E3854,2,FALSE)) -> 
C103: =IF(B103="","",VLOOKUP(B103,Magacin!A7:E3855,2,FALSE)) -> 
C104: =IF(B104="","",VLOOKUP(B104,Magacin!A7:E3856,2,FALSE)) -> 
C105: =IF(B105="","",VLOOKUP(B105,Magacin!A7:E3857,2,FALSE)) -> 
C106: =IF(B106="","",VLOOKUP(B106,Magacin!A7:E3858,2,FALSE)) -> 
C107: =IF(B107="","",VLOOKUP(B107,Magacin!A7:E3859,2,FALSE)) -> 
C108: =IF(B108="","",VLOOKUP(B108,Magacin!A7:E3860,2,FALSE)) -> 
C109: =IF(B109="","",VLOOKUP(B109,Magacin!A7:E3861,2,FALSE)) -> 
C110: =IF(B110="","",VLOOKUP(B110,Magacin!A7:E3862,2,FALSE)) -> 
C111: =IF(B111="","",VLOOKUP(B111,Magacin!A7:E3863,2,FALSE)) -> 
C112: =IF(B112="","",VLOOKUP(B112,Magacin!A7:E3864,2,FALSE)) -> 
C113: =IF(B113="","",VLOOKUP(B113,Magacin!A7:E3865,2,FALSE)) -> 
C114: =IF(B114="","",VLOOKUP(B114,Magacin!A7:E3866,2,FALSE)) -> 
C115: =IF(B115="","",VLOOKUP(B115,Magacin!A7:E3867,2,FALSE)) -> 
C116: =IF(B116="","",VLOOKUP(B116,Magacin!A7:E3868,2,FALSE)) -> 
C117: =IF(B117="","",VLOOKUP(B117,Magacin!A7:E3869,2,FALSE)) -> 
C118: =IF(B118="","",VLOOKUP(B118,Magacin!A7:E3870,2,FALSE)) -> 
C119: =IF(B119="","",VLOOKUP(B119,Magacin!A7:E3871,2,FALSE)) -> 
C120: =IF(B120="","",VLOOKUP(B120,Magacin!A7:E3872,2,FALSE)) -> 
C121: =IF(B121="","",VLOOKUP(B121,Magacin!A7:E3873,2,FALSE)) -> 
C122: =IF(B122="","",VLOOKUP(B122,Magacin!A7:E3874,2,FALSE)) -> 
C123: =IF(B123="","",VLOOKUP(B123,Magacin!A7:E3875,2,FALSE)) -> 
C124: =IF(B124="","",VLOOKUP(B124,Magacin!A7:E3876,2,FALSE)) -> 
C125: =IF(B125="","",VLOOKUP(B125,Magacin!A7:E3877,2,FALSE)) -> 
C126: =IF(B126="","",VLOOKUP(B126,Magacin!A7:E3878,2,FALSE)) -> 
C127: =IF(B127="","",VLOOKUP(B127,Magacin!A7:E3879,2,FALSE)) -> 
C128: =IF(B128="","",VLOOKUP(B128,Magacin!A7:E3880,2,FALSE)) -> 
C129: =IF(B129="","",VLOOKUP(B129,Magacin!A7:E3881,2,FALSE)) -> 
C130: =IF(B130="","",VLOOKUP(B130,Magacin!A7:E3882,2,FALSE)) -> 
C131: =IF(B131="","",VLOOKUP(B131,Magacin!A7:E3883,2,FALSE)) -> 
C132: =IF(B132="","",VLOOKUP(B132,Magacin!A7:E3884,2,FALSE)) -> 
C133: =IF(B133="","",VLOOKUP(B133,Magacin!A7:E3885,2,FALSE)) -> 
C134: =IF(B134="","",VLOOKUP(B134,Magacin!A7:E3886,2,FALSE)) -> 
C135: =IF(B135="","",VLOOKUP(B135,Magacin!A7:E3887,2,FALSE)) -> 
C136: =IF(B136="","",VLOOKUP(B136,Magacin!A7:E3888,2,FALSE)) -> 
C137: =IF(B137="","",VLOOKUP(B137,Magacin!A7:E3889,2,FALSE)) -> 
C138: =IF(B138="","",VLOOKUP(B138,Magacin!A7:E3890,2,FALSE)) -> 
C139: =IF(B139="","",VLOOKUP(B139,Magacin!A7:E3891,2,FALSE)) -> 
C140: =IF(B140="","",VLOOKUP(B140,Magacin!A7:E3892,2,FALSE)) -> 
C141: =IF(B141="","",VLOOKUP(B141,Magacin!A7:E3893,2,FALSE)) -> 
C142: =IF(B142="","",VLOOKUP(B142,Magacin!A7:E3894,2,FALSE)) -> 
C143: =IF(B143="","",VLOOKUP(B143,Magacin!A7:E3895,2,FALSE)) -> 
C144: =IF(B144="","",VLOOKUP(B144,Magacin!A7:E3896,2,FALSE)) -> 
C145: =IF(B145="","",VLOOKUP(B145,Magacin!A7:E3897,2,FALSE)) -> 
C146: =IF(B146="","",VLOOKUP(B146,Magacin!A7:E3898,2,FALSE)) -> 
C147: =IF(B147="","",VLOOKUP(B147,Magacin!A7:E3899,2,FALSE)) -> 
C148: =IF(B148="","",VLOOKUP(B148,Magacin!A7:E3900,2,FALSE)) -> 
C149: =IF(B149="","",VLOOKUP(B149,Magacin!A7:E3901,2,FALSE)) -> 
C150: =IF(B150="","",VLOOKUP(B150,Magacin!A7:E3902,2,FALSE)) -> 
C151: =IF(B151="","",VLOOKUP(B151,Magacin!A7:E3903,2,FALSE)) -> 
C152: =IF(B152="","",VLOOKUP(B152,Magacin!A7:E3904,2,FALSE)) -> 
C153: =IF(B153="","",VLOOKUP(B153,Magacin!A7:E3905,2,FALSE)) -> 
C154: =IF(B154="","",VLOOKUP(B154,Magacin!A7:E3906,2,FALSE)) -> 
C155: =IF(B155="","",VLOOKUP(B155,Magacin!A7:E3907,2,FALSE)) -> 
C156: =IF(B156="","",VLOOKUP(B156,Magacin!A7:E3908,2,FALSE)) -> 
C157: =IF(B157="","",VLOOKUP(B157,Magacin!A7:E3909,2,FALSE)) -> 
C158: =IF(B158="","",VLOOKUP(B158,Magacin!A7:E3910,2,FALSE)) -> 
C159: =IF(B159="","",VLOOKUP(B159,Magacin!A7:E3911,2,FALSE)) -> 
C160: =IF(B160="","",VLOOKUP(B160,Magacin!A7:E3912,2,FALSE)) -> 
C161: =IF(B161="","",VLOOKUP(B161,Magacin!A7:E3913,2,FALSE)) -> 
C162: =IF(B162="","",VLOOKUP(B162,Magacin!A7:E3914,2,FALSE)) -> 
C163: =IF(B163="","",VLOOKUP(B163,Magacin!A7:E3915,2,FALSE)) -> 
C164: =IF(B164="","",VLOOKUP(B164,Magacin!A7:E3916,2,FALSE)) -> 
C165: =IF(B165="","",VLOOKUP(B165,Magacin!A7:E3917,2,FALSE)) -> 
C166: =IF(B166="","",VLOOKUP(B166,Magacin!A7:E3918,2,FALSE)) -> 
C167: =IF(B167="","",VLOOKUP(B167,Magacin!A7:E3919,2,FALSE)) -> 
C168: =IF(B168="","",VLOOKUP(B168,Magacin!A7:E3920,2,FALSE)) -> 
C169: =IF(B169="","",VLOOKUP(B169,Magacin!A7:E3921,2,FALSE)) -> 
C170: =IF(B170="","",VLOOKUP(B170,Magacin!A7:E3922,2,FALSE)) -> 
C171: =IF(B171="","",VLOOKUP(B171,Magacin!A7:E3923,2,FALSE)) -> 
C172: =IF(B172="","",VLOOKUP(B172,Magacin!A7:E3924,2,FALSE)) -> 
C173: =IF(B173="","",VLOOKUP(B173,Magacin!A7:E3925,2,FALSE)) -> 
C174: =IF(B174="","",VLOOKUP(B174,Magacin!A7:E3926,2,FALSE)) -> 
C175: =IF(B175="","",VLOOKUP(B175,Magacin!A7:E3927,2,FALSE)) -> 
C176: =IF(B176="","",VLOOKUP(B176,Magacin!A7:E3928,2,FALSE)) -> 
C177: =IF(B177="","",VLOOKUP(B177,Magacin!A7:E3929,2,FALSE)) -> 
C178: =IF(B178="","",VLOOKUP(B178,Magacin!A7:E3930,2,FALSE)) -> 
C179: =IF(B179="","",VLOOKUP(B179,Magacin!A7:E3931,2,FALSE)) -> 
C180: =IF(B180="","",VLOOKUP(B180,Magacin!A7:E3932,2,FALSE)) -> 
C181: =IF(B181="","",VLOOKUP(B181,Magacin!A7:E3933,2,FALSE)) -> 
C182: =IF(B182="","",VLOOKUP(B182,Magacin!A7:E3934,2,FALSE)) -> 
C183: =IF(B183="","",VLOOKUP(B183,Magacin!A7:E3935,2,FALSE)) -> 
C184: =IF(B184="","",VLOOKUP(B184,Magacin!A7:E3936,2,FALSE)) -> 
C185: =IF(B185="","",VLOOKUP(B185,Magacin!A7:E3937,2,FALSE)) -> 
C186: =IF(B186="","",VLOOKUP(B186,Magacin!A7:E3938,2,FALSE)) -> 
C187: =IF(B187="","",VLOOKUP(B187,Magacin!A7:E3939,2,FALSE)) -> 
C188: =IF(B188="","",VLOOKUP(B188,Magacin!A7:E3940,2,FALSE)) -> 
C189: =IF(B189="","",VLOOKUP(B189,Magacin!A7:E3941,2,FALSE)) -> 
C190: =IF(B190="","",VLOOKUP(B190,Magacin!A7:E3942,2,FALSE)) -> 
C191: =IF(B191="","",VLOOKUP(B191,Magacin!A7:E3943,2,FALSE)) -> 
C192: =IF(B192="","",VLOOKUP(B192,Magacin!A7:E3944,2,FALSE)) -> 
C193: =IF(B193="","",VLOOKUP(B193,Magacin!A7:E3945,2,FALSE)) -> 
C194: =IF(B194="","",VLOOKUP(B194,Magacin!A7:E3946,2,FALSE)) -> 
C195: =IF(B195="","",VLOOKUP(B195,Magacin!A7:E3947,2,FALSE)) -> 
C196: =IF(B196="","",VLOOKUP(B196,Magacin!A7:E3948,2,FALSE)) -> 
C197: =IF(B197="","",VLOOKUP(B197,Magacin!A7:E3949,2,FALSE)) -> 
C198: =IF(B198="","",VLOOKUP(B198,Magacin!A7:E3950,2,FALSE)) -> 
C199: =IF(B199="","",VLOOKUP(B199,Magacin!A7:E3951,2,FALSE)) -> 
C200: =IF(B200="","",VLOOKUP(B200,Magacin!A7:E3952,2,FALSE)) -> 
C201: =IF(B201="","",VLOOKUP(B201,Magacin!A7:E3953,2,FALSE)) -> 
C202: =IF(B202="","",VLOOKUP(B202,Magacin!A7:E3954,2,FALSE)) -> 
C203: =IF(B203="","",VLOOKUP(B203,Magacin!A7:E3955,2,FALSE)) -> 
C204: =IF(B204="","",VLOOKUP(B204,Magacin!A7:E3956,2,FALSE)) -> 
C205: =IF(B205="","",VLOOKUP(B205,Magacin!A7:E3957,2,FALSE)) -> 
C206: =IF(B206="","",VLOOKUP(B206,Magacin!A7:E3958,2,FALSE)) -> 
C207: =IF(B207="","",VLOOKUP(B207,Magacin!A7:E3959,2,FALSE)) -> 
C208: =IF(B208="","",VLOOKUP(B208,Magacin!A7:E3960,2,FALSE)) -> 
C209: =IF(B209="","",VLOOKUP(B209,Magacin!A7:E3961,2,FALSE)) -> 
C210: =IF(B210="","",VLOOKUP(B210,Magacin!A7:E3962,2,FALSE)) -> 
C211: =IF(B211="","",VLOOKUP(B211,Magacin!A7:E3963,2,FALSE)) -> 
... 2139 more rows

Sheet Otpremnice
A12: r.br | B12: šifra | C12: Naziv artikla | D12: Količina | E12: Nabavna Cijena | F12: Nabavna. Vrijednost | G12: Veleprod. Cijena | H12: Veleprod. Vijednost | I12: Maloprod. Cijena | J12: Maloprod. Cijena
A13: 1 | B13: 33 | C13: =IF(B13="","",VLOOKUP(B13,Magacin!$A$3:$H$49985,2,FALSE)) -> Artikal 3 - 15kg | D13: 30 | E13: =IF(C13="","",VLOOKUP(C13,Magacin!$B$3:$H49985,5,FALSE)) -> 1.119 | F13: =D13*E13 -> 33.57 | G13: =IF(C13="","",VLOOKUP(C13,Magacin!$B$3:$H49985,6,FALSE)) -> 2.142 | H13: =D13*G13 -> 64.26 | I13: =IF(C13="","",VLOOKUP(C13,Magacin!$B$3:$H49985,7,TRUE)) -> 2.8 | J13: =D13*I13 -> 84
A14: =IF(B14="","",A13+1) -> 2 | B14: 11 | C14: =IF(B14="","",VLOOKUP(B14,Magacin!$A$3:$H$49985,2,FALSE)) -> Artikal 1 - 25kg | D14: 684 | E14: =IF(C14="","",VLOOKUP(C14,Magacin!$B$3:$H49986,5,FALSE)) -> 0.486 | F14: =D14*E14 -> 332.424 | G14: =IF(C14="","",VLOOKUP(C14,Magacin!$B$3:$H49986,6,FALSE)) -> 0.91 | H14: =D14*G14 -> 622.44 | I14: =IF(C14="","",VLOOKUP(C14,Magacin!$B$3:$H49986,7,TRUE)) -> 1.4 | J14: =D14*I14 -> 957.6
A15: =IF(B15="","",A14+1) -> 3 | B15: 22 | C15: =IF(B15="","",VLOOKUP(B15,Magacin!$A$3:$H$49985,2,FALSE)) -> Artikal 2 - 15kg | D15: 108 | E15: =IF(C15="","",VLOOKUP(C15,Magacin!$B$3:$H49987,5,FALSE)) -> 0.399 | F15: 43.092 | G15: =IF(C15="","",VLOOKUP(C15,Magacin!$B$3:$H49987,6,FALSE)) -> 0.928 | H15: 100.224 | I15: =IF(C15="","",VLOOKUP(C15,Magacin!$B$3:$H49987,7,TRUE)) -> 1.2 | J15: 129.6
C16: =IF(B16="","",VLOOKUP(B16,Magacin!$A$3:$H$49985,2,FALSE)) ->  | E16: =IF(C16="","",VLOOKUP(C16,Magacin!$B$3:$H49988,5,FALSE)) ->  | G16: =IF(C16="","",VLOOKUP(C16,Magacin!$B$3:$H49988,6,FALSE)) ->  | I16: =IF(C16="","",VLOOKUP(C16,Magacin!$B$3:$H49988,7,TRUE)) -> 
C17: =IF(B17="","",VLOOKUP(B17,Magacin!$A$3:$H$49985,2,FALSE)) ->  | E17: =IF(C17="","",VLOOKUP(C17,Magacin!$B$3:$H49989,5,FALSE)) ->  | G17: =IF(C17="","",VLOOKUP(C17,Magacin!$B$3:$H49989,6,FALSE)) ->  | I17: =IF(C17="","",VLOOKUP(C17,Magacin!$B$3:$H49989,7,TRUE)) -> 
C18: =IF(B18="","",VLOOKUP(B18,Magacin!$A$3:$H$49985,2,FALSE)) ->  | E18: =IF(C18="","",VLOOKUP(C18,Magacin!$B$3:$H49990,5,FALSE)) ->  | G18: =IF(C18="","",VLOOKUP(C18,Magacin!$B$3:$H49990,6,FALSE)) ->  | I18: =IF(C18="","",VLOOKUP(C18,Magacin!$B$3:$H49990,7,TRUE)) -> 
C19: =IF(B19="","",VLOOKUP(B19,Magacin!$A$3:$H$49985,2,FALSE)) ->  | E19: =IF(C19="","",VLOOKUP(C19,Magacin!$B$3:$H49991,5,FALSE)) ->  | G19: =IF(C19="","",VLOOKUP(C19,Magacin!$B$3:$H49991,6,FALSE)) ->  | I19: =IF(C19="","",VLOOKUP(C19,Magacin!$B$3:$H49991,7,TRUE)) -> 
